bitfinex/quotes_SOLUSD_20241223
["timestamp","ask_amount","ask_price","bid_price","bid_amount"]
[1734962733739,6.6291,183.86,183.81,20.7318757]
[1734962733891,6.6291,183.86,183.82,20.7318757]
[1734962734328,6.6291,183.86,183.83,20.7318757]
[1734962734618,9.1982,183.91,183.84,20.7318757]
[1734962735194,9.1982,183.91,183.83,20.7318757]
[1734962736022,0.6831623,183.94,183.85,20.7318757]
[1734962736700,1.70254302,183.94,183.83,20.7318757]
[1734962737415,1.70254302,183.94,183.85,20.7318757]
[1734962737416,0.6831623,183.94,183.85,20.7318757]
[1734962738306,1.70249463,183.94,183.84,20.7318757]
[1734962738607,0.6831623,183.94,183.87,20.7318757]
[1734962738999,0.6831623,183.94,183.88,20.7318757]
[1734962739198,0.6831623,183.94,183.92,20.7318757]
[1734962741397,0.6831623,183.94,183.91,20.7318757]
[1734962743024,0.6831623,183.94,183.93,20.7318757]
[1734962743926,0.6831623,183.94,183.88,13.5958]
[1734962743927,0.6831623,183.94,183.91,20.7318757]
[1734962744222,0.6831623,183.94,183.93,20.7318757]
[1734962744919,0.6831623,183.94,183.91,20.7318757]
[1734962745317,0.6831623,183.94,183.88,13.5958]
[1734962745318,0.6831623,183.94,183.93,20.7318757]
[1734962748214,0.6831623,183.94,183.93,44.5087597]
[1734962748630,0.6831623,183.94,183.93,20.7318757]
[1734962749720,0.59885519,183.97,183.93,44.6342497]
[1734962749939,0.59885519,183.97,183.96,40.7318757]
[1734962752544,0.59885519,183.97,183.96,64.5087597]
[1734962753032,0.59885519,183.97,183.96,40.7318757]
[1734962754547,0.59885519,183.97,183.96,64.6342497]
[1734962754744,0.59885519,183.97,183.96,54.3217757]
[1734962755043,6.2428,184.07,183.97,23.776884]
[1734962755348,6.2428,184.07,184.0,20.7318757]
[1734962755645,6.2428,184.07,184.02,20.7318757]
[1734962755832,3.0549,184.09,184.02,20.7318757]
[1734962756145,7.2255623,184.12,184.04,20.7318757]
[1734962756336,7.2255623,184.12,184.06,20.7318757]
[1734962757133,0.6831623,184.12,184.08,20.7318757]
[1734962757719,0.6831623,184.12,184.1,20.7318757]
[1734962757945,0.6831623,184.12,184.11,20.7318757]
[1734962758436,0.6831623,184.12,184.03,40.7535]
[1734962758620,0.6831623,184.12,184.11,20.7318757]
[1734962760117,0.6831623,184.12,184.09,20.7318757]
[1734962760539,0.6831623,184.12,184.07,20.7318757]
[1734962761128,0.6831623,184.12,184.09,20.7318757]
[1734962761328,0.6831623,184.12,184.11,20.7318757]
[1734962762034,0.6831623,184.12,184.11,20.8573657]
[1734962762352,6.23e-05,184.12,184.11,44.6342497]
[1734962762918,6.23e-05,184.12,184.11,44.5087597]
[1734962763132,6.23e-05,184.12,184.11,20.7318757]
[1734962763339,6.23e-05,184.12,184.09,13.5802]
[1734962763340,6.23e-05,184.12,184.09,34.3120757]
[1734962763933,6.23e-05,184.12,184.09,20.7318757]
[1734962765070,6.23e-05,184.12,184.11,20.7318757]
[1734962766253,0.145,184.2,184.12,0.12549]
[1734962766433,0.145,184.2,184.19,20.7318757]
[1734962770147,0.145,184.2,184.17,20.7318757]
[1734962772233,0.145,184.2,184.06,13.5823]
[1734962772234,9.6221,184.2,184.06,13.5823]
[1734962772428,1.01812246,184.19,184.09,20.7318757]
[1734962772752,1.01812246,184.19,184.06,13.5823]
[1734962772753,1.01812246,184.19,184.1,20.7318757]
[1734962772956,1.01812246,184.19,184.09,20.7318757]
[1734962773448,1.01812246,184.19,184.01,30.2027]
[1734962773449,1.01812246,184.19,184.05,20.7318757]
[1734962773652,23.902374,184.18,184.03,20.7318757]
[1734962773834,0.12549,184.16,184.03,20.7318757]
[1734962774033,1.01858827,184.15,184.03,20.7318757]
[1734962774238,6.4968,184.14,184.03,20.7318757]
[1734962774540,3.0736,184.12,184.02,20.7318757]
[1734962774745,3.0736,184.12,184.05,20.7318757]
[1734962774930,3.0736,184.12,184.06,20.7318757]
[1734962775129,3.0736,184.12,184.07,20.7318757]
[1734962775636,3.0736,184.12,184.06,20.7318757]
[1734962775840,3.0736,184.12,184.05,20.7318757]
[1734962776632,3.0736,184.12,184.04,20.7318757]
[1734962776832,1.01850871,184.11,184.03,20.7318757]
[1734962777245,1.01847223,184.11,184.03,20.7318757]
[1734962777957,3.0736,184.12,184.04,20.7318757]
[1734962778168,3.0736,184.12,184.06,20.7318757]
[1734962778729,0.145,184.2,184.11,23.902374]
[1734962778940,0.145,184.2,184.19,20.7318757]
[1734962779157,0.4852378,184.27,184.2,23.902374]
[1734962779331,0.4852378,184.27,184.25,20.7318757]
[1734962779535,0.4852378,184.27,184.24,20.7318757]
[1734962779760,0.4852378,184.27,184.2,13.5721]
[1734962779962,0.4852378,184.27,184.25,20.7318757]
[1734962782056,0.4852378,184.27,184.24,20.7318757]
[1734962782245,0.4852378,184.27,184.25,20.7318757]
[1734962783465,0.4852378,184.27,184.26,20.7318757]
[1734962786066,0.4852378,184.27,184.21,20.7318757]
[1734962786245,0.4852378,184.27,184.2,20.7318757]
[1734962787849,0.4852378,184.27,184.21,20.7318757]
[1734962789168,0.4852378,184.27,184.22,20.7318757]
[1734962789973,0.4852378,184.27,184.24,20.7318757]
[1734962790269,6.2257,184.4,184.29,20.0]
[1734962790472,12.9194,184.43,184.37,20.7318757]
[1734962790771,12.9194,184.43,184.39,20.7318757]
[1734962791238,12.9194,184.43,184.37,20.7318757]
[1734962791447,1.01674201,184.42,184.35,20.7318757]
[1734962792062,1.01687897,184.42,184.35,20.7318757]
[1734962793073,1.01687897,184.42,184.33,20.7318757]
[1734962793948,1.01687897,184.42,184.35,20.7318757]
[1734962794360,1.01687897,184.42,184.29,20.0]
[1734962794361,1.01687897,184.42,184.33,20.7318757]
[1734962794565,1.3556,184.41,184.33,20.7318757]
[1734962794745,1.01694851,184.4,184.33,20.7318757]
[1734962794943,1.01694851,184.4,184.31,20.7318757]
[1734962795449,13.93642449,184.43,184.37,20.7318757]
[1734962796167,13.93642449,184.43,184.35,20.7318757]
[1734962798068,1.3556,184.42,184.33,20.7318757]
[1734962798239,1.01691626,184.41,184.33,20.7318757]
[1734962800863,10.0,184.43,184.37,20.7318757]
[1734962801069,10.0,184.43,184.4,20.7318757]
[1734962802550,10.0,184.43,184.36,20.7318757]
[1734962802956,10.0,184.43,184.38,20.7318757]
[1734962803176,10.0,184.43,184.4,20.7318757]
[1734962806676,10.0,184.43,184.37,20.7318757]
[1734962807172,10.0,184.43,184.39,20.7318757]
[1734962808155,10.0,184.43,184.37,20.7318757]
[1734962808474,1.01671954,184.42,184.35,20.7318757]
[1734962808856,10.0,184.43,184.36,20.7318757]
[1734962809261,10.0,184.43,184.33,0.12549]
[1734962809566,10.0,184.43,184.4,20.7318757]
[1734962809767,10.0,184.43,184.38,20.7318757]
[1734962809974,10.0,184.43,184.32,20.7318757]
[1734962810158,10.0,184.43,184.35,20.7318757]
[1734962810363,10.0,184.43,184.34,20.7318757]
[1734962810780,10.0,184.43,184.35,20.7318757]
[1734962811185,11.01671018,184.43,184.35,20.7318757]
[1734962811687,10.0,184.43,184.35,20.7318757]
[1734962812262,10.0,184.43,184.39,20.7318757]
[1734962812589,10.0,184.43,184.41,20.7318757]
[1734962814986,10.0,184.43,184.39,20.7318757]
[1734962816056,16.5118,184.43,184.32,13.5632]
[1734962816256,16.5118,184.43,184.34,20.7318757]
[1734962817088,3.90306218,184.42,184.3,20.7318757]
[1734962819788,3.90306218,184.42,184.25,13.5684]
[1734962819789,3.90306218,184.42,184.32,20.7318757]
[1734962819998,3.90306218,184.42,184.34,20.7318757]
[1734962820990,3.90306218,184.42,184.28,13.566]
[1734962821162,3.90306218,184.42,184.31,20.7318757]
[1734962821357,3.90306218,184.42,184.3,20.7318757]
[1734962821584,1.48109,184.41,184.28,20.7318757]
[1734962821791,1.0172166,184.4,184.27,20.7318757]
[1734962822184,1.0172166,184.4,184.28,20.7318757]
[1734962822888,1.3558,184.39,184.27,20.7318757]
[1734962823206,6.033,184.37,184.25,20.7318757]
[1734962823370,6.033,184.35,184.2,13.5715]
[1734962823569,4.09737241,184.34,184.19,20.7318757]
[1734962823768,0.12549,184.33,184.19,20.7318757]
[1734962824088,4.09737241,184.34,184.29,20.7318757]
[1734962824089,4.09758891,184.34,184.29,20.7318757]
[1734962824275,6.033,184.35,184.31,20.7318757]
[1734962824600,3.0799,184.39,184.33,20.7318757]
[1734962824782,6.033,184.4,184.35,20.7318757]
[1734962825205,6.033,184.4,184.23,20.7318757]
[1734962825206,1.01687953,184.39,184.31,20.7318757]
[1734962825382,1.01687953,184.39,184.27,20.7318757]
[1734962825580,0.12549,184.37,184.27,20.7318757]
[1734962825783,1.01738453,184.37,184.25,20.7318757]
[1734962826105,2.9493,184.38,184.33,20.7318757]
[1734962826428,6.033,184.4,184.37,20.7318757]
[1734962827007,10.0,184.43,184.39,20.7318757]
[1734962827170,10.0,184.43,184.35,20.0]
[1734962827171,10.0,184.43,184.42,20.7318757]
[1734962828783,10.0,184.43,184.4,20.7318757]
[1734962829391,10.0,184.43,184.35,20.0]
[1734962829392,10.1098143,184.43,184.38,20.7318757]
[1734962829589,1.0167117,184.42,184.38,20.7318757]
[1734962829902,1.0167117,184.42,184.36,20.7318757]
[1734962831197,1.0167117,184.42,184.34,20.7318757]
[1734962831504,1.0167117,184.42,184.36,20.7318757]
[1734962831691,10.1098143,184.43,184.36,20.7318757]
[1734962832005,1.01673365,184.42,184.38,20.7318757]
[1734962832183,10.1098143,184.43,184.36,20.7318757]
[1734962832383,1.01672495,184.42,184.36,20.7318757]
[1734962832904,1.01672495,184.42,184.34,20.7318757]
[1734962833094,1.01672495,184.42,184.25,3.1505]
[1734962833095,6.4791,184.41,184.32,20.7318757]
[1734962833409,4.18633051,184.4,184.32,20.7318757]
[1734962833775,4.18633051,184.4,184.25,3.1505]
[1734962834081,4.18633051,184.4,184.3,20.7318757]
[1734962836316,4.18633051,184.4,184.32,20.7318757]
[1734962840917,1.3558,184.39,184.29,20.7318757]
[1734962841117,1.01720336,184.38,184.29,20.7318757]
[1734962841314,1.01720336,184.38,184.31,20.7318757]
[1734962841517,3.1692,184.4,184.35,20.7318757]
[1734962842916,4.18605143,184.4,184.35,20.7318757]
[1734962843218,3.1692,184.4,184.35,20.7318757]
[1734962843403,3.1692,184.4,184.32,20.7318757]
[1734962843404,0.1098143,184.43,184.39,20.7318757]
[1734962843600,0.1098143,184.43,184.41,20.7318757]
[1734962844893,0.1098143,184.43,184.39,20.7318757]
[1734962845813,0.1098143,184.43,184.3,11.44061569]
[1734962846021,0.1098143,184.43,184.35,20.7318757]
[1734962846695,0.1098143,184.43,184.33,20.7318757]
[1734962846897,6.0703,184.41,184.33,20.7318757]
[1734962847216,1.01699419,184.4,184.32,20.7318757]
[1734962847416,1.01699419,184.4,184.34,20.7318757]
[1734962847609,1.01699419,184.4,184.33,20.7318757]
[1734962848013,7.08730908,184.41,184.33,20.7318757]
[1734962848518,7.08730908,184.41,184.32,20.7318757]
[1734962848717,8.44300908,184.41,184.29,20.7318757]
[1734962849017,0.12549,184.4,184.29,20.7318757]
[1734962849195,1.01713968,184.39,184.29,20.7318757]
[1734962850014,1.01713968,184.39,184.23,34.3011757]
[1734962850221,0.12549,184.38,184.27,20.7318757]
[1734962850619,0.12549,184.38,184.2,13.5721]
[1734962850620,9.3219,184.36,184.2,13.5721]
[1734962850819,6.4592,184.41,184.31,20.7318757]
[1734962851122,6.4592,184.41,184.35,20.7318757]
[1734962851302,6.4592,184.41,184.37,20.7318757]
[1734962851623,6.4592,184.41,184.35,20.7318757]
[1734962851799,6.4592,184.41,184.33,20.7318757]
[1734962851800,7.47602237,184.41,184.33,20.7318757]
[1734962852205,7.47602237,184.41,184.31,20.7318757]
[1734962854519,6.4592,184.41,184.37,20.7318757]
[1734962854725,3.0498,184.42,184.37,20.7318757]
[1734962854899,1.01678632,184.41,184.35,20.7318757]
[1734962855099,1.01678632,184.41,184.33,20.7318757]
[1734962855613,1.01678632,184.41,184.35,20.7318757]
[1734962855926,1.01678632,184.41,184.33,20.7318757]
[1734962857010,1.01678632,184.41,184.3,20.7318757]
[1734962857529,1.3557,184.4,184.3,20.7318757]
[1734962857701,6.6107,184.38,184.28,20.7318757]
[1734962857905,1.01716883,184.37,184.28,20.7318757]
[1734962858437,1.01716883,184.37,184.26,20.7318757]
[1734962859299,0.12549,184.36,184.25,20.7318757]
[1734962859722,0.2353043,184.36,184.26,20.7318757]
[1734962861132,1.3561,184.35,184.26,20.7318757]
[1734962861324,1.017374,184.34,184.26,20.7318757]
[1734962861632,3.0048,184.33,184.24,20.7318757]
[1734962861933,1.01756685,184.32,184.22,20.7318757]
[1734962862345,6.68469,184.31,184.19,20.7318757]
[1734962862539,1.01785634,184.3,184.19,20.7318757]
[1734962862750,1.01785634,184.3,184.21,20.7318757]
[1734962863249,2.37435634,184.3,184.21,20.7318757]
[1734962864546,1.3566,184.28,184.19,20.7318757]
[1734962864744,1.1433646,184.27,184.17,20.7318757]
[1734962865807,21.8752396,184.27,184.17,20.7318757]
[1734962866244,3.0261,184.26,184.17,20.7318757]
[1734962866452,1.01792546,184.25,184.17,20.7318757]
[1734962866740,2.37472546,184.25,184.15,20.7318757]
[1734962868759,2.37472546,184.25,184.09,6.148]
[1734962868760,6.2099,184.22,184.13,20.7318757]
[1734962868984,1.01813049,184.21,184.11,20.7318757]
[1734962869272,0.12549,184.2,184.1,20.7318757]
[1734962869430,0.12549,184.18,184.1,20.7318757]
[1734962869847,1.01833703,184.19,184.11,20.7318757]
[1734962870339,1.01833703,184.19,184.1,20.7318757]
[1734962870758,1.48279,184.18,184.1,20.7318757]
[1734962870931,1.01846084,184.17,184.09,20.7318757]
[1734962871130,1.01846084,184.17,183.99,13.5875]
[1734962871131,3.0388,184.16,184.08,20.7318757]
[1734962871334,1.01849019,184.15,184.08,20.7318757]
[1734962871967,1.01849019,184.15,184.09,20.7318757]
[1734962872172,1.3573,184.18,184.01,13.5862]
[1734962872173,3.864004,184.21,184.14,20.7318757]
[1734962872467,3.864004,184.21,184.16,20.7318757]
[1734962872625,3.864004,184.21,184.15,20.7318757]
[1734962872825,3.864004,184.21,184.16,20.7318757]
[1734962873023,3.864004,184.21,184.14,20.7318757]
[1734962874029,3.864004,184.21,184.16,20.7318757]
[1734962874351,1.018304,184.21,184.16,20.7318757]
[1734962874553,6.2099,184.22,184.17,20.7318757]
[1734962874730,6.2099,184.22,184.16,20.7318757]
[1734962875058,6.2099,184.22,184.15,20.7318757]
[1734962875354,1.01793749,184.21,184.12,20.7318757]
[1734962875526,1.01793749,184.21,184.15,20.7318757]
[1734962875731,6.2099,184.22,184.16,20.7318757]
[1734962876348,6.2099,184.22,184.17,20.7318757]
[1734962877350,10.52892205,184.26,184.19,20.7318757]
[1734962877539,9.5111,184.26,184.19,20.7318757]
[1734962877741,9.5111,184.26,184.2,20.7318757]
[1734962878131,9.5111,184.26,184.19,20.7318757]
[1734962878650,9.5111,184.26,184.18,20.7318757]
[1734962878858,1.01765165,184.25,184.18,20.7318757]
[1734962879762,9.5111,184.26,184.18,20.7318757]
[1734962880168,1.01772906,184.25,184.18,20.7318757]
[1734962880369,1.01772906,184.25,184.17,20.7318757]
[1734962880565,1.01772906,184.25,184.16,20.7318757]
[1734962881777,1.01772906,184.25,184.17,20.7318757]
[1734962882583,1.01772906,184.25,184.18,20.7318757]
[1734962882779,1.01772906,184.25,184.17,20.7318757]
[1734962883781,1.12765963,184.28,184.22,20.7318757]
[1734962883992,0.1098143,184.28,184.22,20.7318757]
[1734962884760,0.1098143,184.28,184.24,20.7318757]
[1734962884964,0.1098143,184.28,184.16,2.31066689]
[1734962884965,0.1098143,184.28,184.26,20.7318757]
[1734962885486,0.1098143,184.28,184.25,20.7318757]
[1734962885688,0.1098143,184.28,184.16,2.25809283]
[1734962885689,0.1098143,184.28,184.23,20.7318757]
[1734962886391,0.1098143,184.28,184.24,20.7318757]
[1734962887786,0.1098143,184.28,184.22,20.7318757]
[1734962887978,0.1098143,184.28,184.21,20.7318757]
[1734962889275,0.1098143,184.28,184.19,20.7318757]
[1734962889781,0.1098143,184.28,184.15,20.0015]
[1734962889986,0.1098143,184.28,184.16,20.7318757]
[1734962889987,9.5579,184.27,184.16,20.7318757]
[1734962890327,9.5579,184.27,184.2,20.7318757]
[1734962890797,9.5579,184.27,184.21,20.7318757]
[1734962891190,3.0771,184.27,184.21,20.7318757]
[1734962891495,0.1098143,184.28,184.23,20.7318757]
[1734962895422,0.1098143,184.28,184.19,20.7318757]
[1734962895620,1.12747348,184.28,184.19,20.7318757]
[1734962895834,1.12747348,184.28,184.17,20.7318757]
[1734962896325,0.12549,184.27,184.15,12.75198881]
[1734962896520,1.01791258,184.26,184.15,12.75198881]
[1734962896710,0.12549,184.25,184.15,12.75198881]
[1734962896917,10.54572963,184.24,184.13,12.75198881]
[1734962898317,10.54572963,184.24,184.14,20.40735574]
[1734962899721,10.54572963,184.24,184.12,20.40735574]
[1734962900302,10.54572963,184.24,184.14,20.40735574]
[1734962901724,0.12549,184.23,184.12,20.40735574]
[1734962901901,1.48249,184.23,184.12,20.40735574]
[1734962902099,1.01806647,184.22,184.12,20.40735574]
[1734962902326,1.01806647,184.22,184.1,20.0]
[1734962902633,1.01806647,184.22,184.13,20.40735574]
[1734962903003,1.48259,184.21,184.09,20.40735574]
[1734962903307,1.01828457,184.2,184.09,20.40735574]
[1734962904015,0.12549,184.19,184.09,20.40735574]
[1734962904415,1.01828457,184.2,184.09,20.40735574]
[1734962904634,1.01828457,184.2,184.08,20.40735574]
[1734962904829,1.01828457,184.2,184.14,20.40735574]
[1734962905133,9.5277,184.24,184.16,20.40735574]
[1734962905362,9.5277,184.24,184.17,20.40735574]
[1734962905655,9.5277,184.24,184.16,20.40735574]
[1734962905943,9.5277,184.24,184.15,20.40735574]
[1734962906142,1.01782921,184.23,184.13,20.40735574]
[1734962906347,1.01782921,184.23,184.14,20.40735574]
[1734962906650,9.5277,184.24,184.16,20.40735574]
[1734962907149,9.5277,184.24,184.17,20.40735574]
[1734962907301,0.1098143,184.28,184.19,20.40735574]
[1734962907500,1.12738865,184.28,184.19,20.40735574]
[1734962908104,0.1098143,184.28,184.2,20.40735574]
[1734962908306,0.1098143,184.28,184.21,20.40735574]
[1734962908714,0.1098143,184.28,184.2,20.40735574]
[1734962909551,1.12736353,184.28,184.19,20.40735574]
[1734962909753,0.1098143,184.28,184.19,20.40735574]
[1734962909964,0.1098143,184.28,184.2,20.40735574]
[1734962910483,0.1098143,184.28,184.23,20.40735574]
[1734962910652,0.1098143,184.28,184.22,20.40735574]
[1734962910849,0.1098143,184.28,184.17,13.5743]
[1734962910850,0.1098143,184.28,184.21,20.40735574]
[1734962911184,1.127283,184.28,184.21,20.40735574]
[1734962911359,1.12738755,184.28,184.19,20.40735574]
[1734962911557,0.1098143,184.28,184.19,20.40735574]
[1734962911879,0.1098143,184.28,184.23,20.40735574]
[1734962913200,0.1098143,184.28,184.25,20.40735574]
[1734962915267,0.1098143,184.28,184.24,20.40735574]
[1734962917186,0.1098143,184.28,184.25,20.40735574]
[1734962917491,0.1098143,184.28,184.23,19.6408]
[1734962917645,0.1098143,184.28,184.27,20.40735574]
[1734962918292,0.1098143,184.28,184.27,12.73128527]
[1734962919352,9.5306,184.4,184.33,12.73128527]
[1734962919558,9.5306,184.4,184.28,13.5663]
[1734962919559,9.5306,184.4,184.36,12.73128527]
[1734962919758,1.6921382,184.46,184.36,12.73128527]
[1734962919952,9.5306,184.45,184.28,13.5663]
[1734962920153,1.01674504,184.44,184.34,12.73128527]
[1734962920354,1.01674504,184.44,184.35,12.73128527]
[1734962920895,2.37214504,184.44,184.33,12.73128527]
[1734962921390,2.37214504,184.44,184.34,12.73128527]
[1734962921771,2.37214504,184.44,184.33,12.73128527]
[1734962921988,2.37214504,184.44,184.3,12.73128527]
[1734962922179,0.12549,184.43,184.3,12.73128527]
[1734962922360,1.01704207,184.42,184.3,12.73128527]
[1734962922561,1.48109,184.41,184.28,12.73128527]
[1734962922870,9.1281,184.38,184.26,12.73128527]
[1734962923073,1.0172824,184.37,184.26,12.73128527]
[1734962924575,1.0172824,184.37,184.28,12.73128527]
[1734962924778,1.0172824,184.37,184.27,12.73128527]
[1734962925490,1.0172824,184.37,184.26,12.73128527]
[1734962926277,10.484,184.38,184.3,12.73128527]
[1734962926787,1.01702736,184.37,184.27,12.73128527]
[1734962928907,1.01702736,184.37,184.26,12.73128527]
[1734962929303,1.01702736,184.37,184.27,12.73128527]
[1734962930504,1.48149,184.36,184.25,12.73128527]
[1734962930676,1.01740805,184.35,184.25,12.73128527]
[1734962931606,1.48169,184.34,184.23,12.73128527]
[1734962931806,1.01754687,184.33,184.23,12.73128527]
[1734962933112,1.01754687,184.33,184.24,12.73128527]
[1734962933407,1.01733636,184.32,184.25,12.73128527]
[1734962933709,1.3562,184.34,184.25,12.73128527]
[1734962934116,1.3562,184.34,184.26,12.73128527]
[1734962934275,1.3562,184.34,184.15,9.1536941]
[1734962934601,1.3562,184.34,184.25,12.73128527]
[1734962935903,1.3562,184.34,184.24,12.73128527]
[1734962936906,1.01735527,184.33,184.24,12.73128527]
[1734962937399,11.25143951,184.38,184.3,12.73128527]
[1734962937400,9.1281,184.38,184.3,12.73128527]
[1734962937903,9.1281,184.38,184.23,12.73128527]
[1734962937904,1.01697671,184.37,184.28,12.73128527]
[1734962938697,1.01697671,184.37,184.26,12.73128527]
[1734962939320,1.356,184.36,184.26,12.73128527]
[1734962939477,1.01735947,184.35,184.26,12.73128527]
[1734962941406,1.01729137,184.37,184.3,12.73128527]
[1734962941597,9.1281,184.38,184.32,12.73128527]
[1734962941801,3.0066,184.38,184.34,12.73128527]
[1734962942279,9.545,184.43,184.36,12.73128527]
[1734962942483,9.545,184.43,184.28,6.6072]
[1734962942484,1.69209931,184.46,184.4,12.73128527]
[1734962942687,0.6753613,184.46,184.42,12.73128527]
[1734962943294,0.6753613,184.46,184.44,12.73128527]
[1734962944288,0.6753613,184.46,184.45,20.33982488]
[1734962944806,0.6753613,184.46,184.44,20.33982488]
[1734962945008,0.6753613,184.46,184.45,20.33982488]
[1734962946197,0.6753613,184.46,184.39,0.12549]
[1734962946198,0.6753613,184.46,184.44,20.33982488]
[1734962946396,0.6753613,184.46,184.45,20.33982488]
[1734962948217,0.6753613,184.46,184.44,20.33982488]
[1734962948599,0.6753613,184.46,184.43,20.33982488]
[1734962949915,0.6753613,184.46,184.42,20.33982488]
[1734962950127,0.6753613,184.46,184.4,20.33982488]
[1734962950413,0.6753613,184.46,184.39,20.33982488]
[1734962950609,0.6753613,184.46,184.41,20.33982488]
[1734962950794,0.6753613,184.46,184.44,20.33982488]
[1734962951117,0.6753613,184.46,184.43,20.33982488]
[1734962951334,0.6753613,184.46,184.41,20.33982488]
[1734962951495,0.6753613,184.46,184.39,20.33982488]
[1734962951687,0.6753613,184.46,184.38,20.33982488]
[1734962952188,0.6753613,184.46,184.32,33.90302488]
[1734962952388,0.6753613,184.46,184.42,20.33982488]
[1734962952614,0.6753613,184.46,184.41,20.33982488]
[1734962953222,0.6753613,184.46,184.44,20.33982488]
[1734962953591,0.6753613,184.46,184.43,20.33982488]
[1734962954130,0.6753613,184.46,184.45,20.33982488]
[1734962954993,0.6753613,184.46,184.43,20.33982488]
[1734962955193,0.6753613,184.46,184.44,20.33982488]
[1734962955923,0.6753613,184.46,184.45,20.33982488]
[1734962958224,0.6753613,184.46,184.45,44.11670888]
[1734962959262,0.6753613,184.46,184.45,20.33982488]
[1734962960014,0.6753613,184.46,184.44,20.33982488]
[1734962960231,0.6753613,184.46,184.45,20.33982488]
[1734962960436,0.6753613,184.46,184.44,20.33982488]
[1734962961266,0.6753613,184.46,184.43,20.33982488]
[1734962961547,0.6753613,184.46,184.42,20.33982488]
[1734962961717,0.6753613,184.46,184.41,20.33982488]
[1734962962655,0.6753613,184.46,184.38,20.33982488]
[1734962962945,0.6753613,184.46,184.35,20.33982488]
[1734962962946,6.0132,184.45,184.35,20.33982488]
[1734962963119,6.0132,184.45,184.37,20.33982488]
[1734962963319,6.0132,184.45,184.4,20.33982488]
[1734962963528,6.0132,184.45,184.39,20.33982488]
[1734962963729,6.0132,184.45,184.4,20.33982488]
[1734962964553,6.0132,184.45,184.38,20.33982488]
[1734962965343,0.6753613,184.46,184.4,20.33982488]
[1734962965758,0.6753613,184.46,184.35,20.0]
[1734962965942,0.6753613,184.46,184.37,20.33982488]
[1734962966137,0.6753613,184.46,184.35,20.33982488]
[1734962966343,1.6920041,184.46,184.35,20.33982488]
[1734962967278,1.3553,184.45,184.35,20.33982488]
[1734962967568,9.4979,184.43,184.33,20.33982488]
[1734962967763,1.0168169,184.42,184.31,20.33982488]
[1734962968148,20.0,184.4,184.31,20.33982488]
[1734962968469,1.01697482,184.42,184.31,20.33982488]
[1734962968971,2.37257482,184.42,184.31,20.33982488]
[1734962969337,2.37257482,184.42,184.29,20.33982488]
[1734962969537,20.0,184.39,184.29,20.33982488]
[1734962969756,3.92966186,184.38,184.27,20.33982488]
[1734962969962,0.12549,184.36,184.25,20.33982488]
[1734962970138,1.14287004,184.36,184.24,20.33982488]
[1734962971271,20.0,184.34,184.22,20.33982488]
[1734962971563,3.98460226,184.33,184.22,20.33982488]
[1734962972377,20.0,184.32,184.22,20.33982488]
[1734962972576,1.01753384,184.31,184.22,20.33982488]
[1734962973077,2.37393384,184.31,184.22,20.33982488]
[1734962973266,26.2317,184.3,184.19,20.33982488]
[1734962973449,1.01764378,184.29,184.2,20.33982488]
[1734962973650,1.01764378,184.29,184.18,20.33982488]
[1734962974875,1.48209,184.28,184.18,20.33982488]
[1734962975082,3.84708617,184.27,184.18,20.33982488]
[1734962975267,2.8292,184.27,184.23,20.33982488]
[1734962975462,2.8292,184.27,184.24,20.33982488]
[1734962975646,2.8292,184.27,184.23,20.33982488]
[1734962975846,2.8292,184.27,184.24,20.33982488]
[1734962976575,6.2317,184.3,184.25,20.33982488]
[1734962976780,4.2087,184.32,184.25,20.33982488]
[1734962977075,2.8524,184.32,184.27,20.33982488]
[1734962978049,2.8524,184.32,184.25,20.33982488]
[1734962978259,1.01736686,184.31,184.23,20.33982488]
[1734962979153,1.01736686,184.31,184.21,20.33982488]
[1734962979650,1.01736686,184.31,184.22,20.33982488]
[1734962980784,1.01736686,184.31,184.11,34.23841913]
[1734962980785,2.37376686,184.31,184.2,20.33982488]
[1734962980981,20.0,184.29,184.18,20.33982488]
[1734962981183,1.01769764,184.28,184.18,20.33982488]
[1734962981548,6.4431,184.26,184.11,34.23841913]
[1734962981756,2.9534,184.24,184.15,20.33982488]
[1734962982054,1.01794264,184.23,184.15,20.33982488]
[1734962982253,1.01794264,184.23,184.16,20.33982488]
[1734962982753,1.01794264,184.23,184.15,20.33982488]
[1734962983170,1.357,184.22,184.12,20.33982488]
[1734962983475,1.01807892,184.21,184.12,20.33982488]
[1734962984299,1.3572,184.19,184.1,20.33982488]
[1734962984456,1.3572,184.19,184.12,20.33982488]
[1734962985854,1.3572,184.19,184.11,20.33982488]
[1734962986072,1.01812063,184.18,184.11,20.33982488]
[1734962986792,1.3574,184.17,184.09,20.33982488]
[1734962987083,6.138,184.16,184.09,20.33982488]
[1734962987265,6.138,184.16,184.1,20.33982488]